lending/lending_fUSD_20240621
["ID","MTS","AMOUNT","RATE_DAILY","PERIOD"]
[330037269,1718956685797,-10255.2,0.00041643,31]
[330037270,1718956685829,-500.0,0.00041643,31]
[330037271,1718956685869,-500.0,0.00041643,31]
[330037272,1718956685903,-4755.35,0.00041643,31]
[330037273,1718956685940,-500.0,0.00041643,31]
[330037274,1718956685974,-964.53,0.00041643,31]
[330037275,1718956686020,-925.44,0.00041643,31]
[330037276,1718956686055,-500.0,0.00041643,31]
[330037277,1718956686090,-500.0,0.00041643,31]
[330037278,1718956686123,-1219.64,0.00041643,31]
[330037279,1718956686156,-503.07,0.00041643,31]
[330037280,1718956686189,-500.0,0.00041643,31]
[330037281,1718956686223,-500.0,0.00041643,31]
[330037282,1718956686259,-519.15,0.00041643,31]
[330037283,1718956686296,-935.33,0.00041643,31]
[330037284,1718956686335,-500.0,0.00041643,31]
[330037285,1718956686373,-500.0,0.00041643,31]
[330037286,1718956686412,-500.0,0.00041643,31]
[330037287,1718956686446,-708.03,0.00041643,31]
[330037288,1718956686479,-500.0,0.00041643,31]
[330037289,1718956686510,-2270.49,0.00041643,31]
[330037290,1718956686559,-492.42671896,0.00041643,31]
[330037291,1718956686592,-500.0,0.00041643,31]
[330037292,1718956686843,-6119.17,0.00041643,31]
[330037293,1718956686880,-500.0,0.00041643,31]
[330037294,1718956686916,-870.03,0.00041643,31]
[330037295,1718956686951,-500.0,0.00041643,31]
[330037296,1718956686983,-548.39,0.00041643,31]
[330037297,1718956687013,-750.0,0.00041643,31]
[330037298,1718956687062,-500.0,0.00041643,31]
[330037299,1718956687094,-771.08,0.00041643,31]
[330037300,1718956687131,-1031.43,0.00041643,31]
[330037301,1718956687164,-500.0,0.00041643,31]
[330037302,1718956687196,-500.0,0.00041643,31]
[330037303,1718956687230,-500.0,0.00041643,31]
[330037304,1718956687263,-500.0,0.00041643,31]
[330037305,1718956687296,-500.0,0.00041643,31]
[330037306,1718956687331,-1000.0,0.00041643,31]
[330037307,1718956687363,-500.0,0.00041643,31]
[330037308,1718956687395,-4002.69,0.00041643,31]
[330037309,1718956687426,-6431.19,0.00041643,31]
[330037310,1718956687456,-4493.98,0.00041643,31]
[330037311,1718956687486,-500.0,0.00041643,31]
[330037312,1718956687516,-500.0,0.00041643,31]
[330037313,1718956687555,-526.54,0.00041643,31]
[330037314,1718956687584,-500.0,0.00041643,31]
[330037315,1718956687614,-500.0,0.00041643,31]
[330037316,1718956687645,-500.0,0.00041643,31]
[330037317,1718956687676,-1852.58,0.00041643,31]
[330037318,1718956687706,-500.0,0.00041643,31]
[330037319,1718956687736,-500.0,0.00041643,31]
[330037320,1718956687768,-3046.71,0.00041643,31]
[330037321,1718956687800,-597.52822839,0.00041643,31]
[330037322,1718956687831,-500.0,0.00041643,31]
[330037323,1718956687868,-2045.18,0.00041643,31]
[330037324,1718956687900,-981.43,0.00041643,31]
[330037325,1718956687932,-500.0,0.00041643,31]
[330037326,1718956687966,-803.22,0.00041643,31]
[330037327,1718956687999,-562.04,0.00041643,31]
[330037328,1718956688030,-500.0,0.00041643,31]
[330037329,1718956688082,-500.0,0.00041643,31]
[330037330,1718956688115,-6731.26,0.00041643,31]
[330037331,1718956688148,-642.63,0.00041643,31]
[330037332,1718956688181,-670.74,0.00041643,31]
[330037333,1718956688215,-500.0,0.00041643,31]
[330037334,1718956688247,-500.0,0.00041643,31]
[330037335,1718956688281,-2094.09,0.00041643,31]
[330037336,1718956688315,-2794.18,0.00041643,31]
[330037337,1718956688347,-2411.64,0.00041643,31]
[330037338,1718956688379,-4332.86,0.00041643,31]
[330037339,1718956688413,-543.46119632,0.00041643,31]
[330037340,1718956688447,-625.32,0.00041643,31]
[330037341,1718956688481,-787.77,0.00041643,31]
[330037342,1718956688514,-1266.16,0.00041643,31]
[330037343,1718956688559,-500.0,0.00041643,31]
[330037344,1718956688590,-500.0,0.00041643,31]
[330037345,1718956688622,-500.0,0.00041643,31]
[330037346,1718956688655,-2772.43,0.00041643,31]
[330037347,1718956688686,-500.0,0.00041643,31]
[330037348,1718956688719,-2811.62,0.00041643,31]
[330037349,1718956688752,-6851.03,0.00041643,31]
[330037350,1718956688785,-500.0,0.00041643,31]
[330037351,1718956688818,-1109.59,0.00041643,31]
[330037352,1718956688851,-500.0,0.00041643,31]
[330037353,1718956688885,-1313.17,0.00041643,31]
[330037354,1718956688918,-500.0,0.00041643,31]
[330037355,1718956688953,-1380.05,0.00041643,31]
[330037356,1718956688984,-1050.92,0.00041643,31]
[330037357,1718956689017,-500.0,0.00041643,31]
[330037358,1718956689061,-523.74,0.00041643,31]
[330037359,1718956689092,-500.0,0.00041643,31]
[330037360,1718956689123,-500.0,0.00041643,31]
[330037361,1718956689155,-500.0,0.00041643,31]
[330037362,1718956689187,-521.03,0.00041643,31]
[330037363,1718956689219,-500.0,0.00041643,31]
[330037364,1718956689252,-500.0,0.00041643,31]
[330037365,1718956689284,-500.0,0.00041643,31]
[330037366,1718956689316,-3892.57,0.00041643,31]
[330037367,1718956689348,-851.12,0.00041643,31]
[330037368,1718956689380,-716.39,0.00041643,31]
[330037369,1718956689410,-500.0,0.00041643,31]
[330037370,1718956689442,-784.29,0.00041643,31]
[330037371,1718956689473,-500.0,0.00041643,31]
[330037372,1718956689504,-2150.26,0.00041643,31]
[330037373,1718956689536,-500.0,0.00041643,31]
[330037374,1718956689587,-2830.23,0.00041643,31]
[330037375,1718956689619,-500.0,0.00041643,30]
[330037376,1718956689651,-8086.38,0.00041643,31]
[330037377,1718956689682,-704.67,0.00041643,31]
[330037378,1718956689713,-500.0,0.00041643,31]
[330037379,1718956689746,-500.0,0.00041643,31]
[330037380,1718956689779,-500.0,0.00041643,31]
[330037381,1718956689810,-500.0,0.00041643,31]
[330037382,1718956689845,-565.47,0.00041643,31]
[330037383,1718956689876,-500.0,0.00041643,31]
[330037384,1718956689909,-500.0,0.00041643,31]
[330037385,1718956689944,-500.0,0.00041643,31]
[330037386,1718956689977,-500.0,0.00041643,31]
[330037387,1718956690008,-500.0,0.00041643,31]
[330037388,1718956690046,-500.0,0.00041643,31]
[330037389,1718956690094,-500.0,0.00041643,31]
[330037390,1718956690133,-2235.27,0.00041643,31]
[330037391,1718956690174,-650.36,0.00041643,31]
[330037392,1718956690213,-2644.14,0.00041643,31]
[330037393,1718956690251,-500.0,0.00041643,31]
[330037394,1718956690287,-500.0,0.00041643,31]
[330037395,1718956690324,-1835.83,0.00041643,31]
[330037396,1718956690582,-277.48468947,0.00041643,31]
[330037397,1718956690619,-500.0,0.00041643,31]
[330037398,1718956690656,-3674.3,0.00041643,31]
[330037399,1718956690692,-711.69,0.00041643,31]
[330037400,1718956690728,-500.0,0.00041643,31]
[330037401,1718956690762,-3398.89,0.00041643,31]
[330037402,1718956690795,-1258.37,0.00041643,31]
[330037403,1718956690829,-500.0,0.00041643,31]
[330037404,1718956690865,-7618.27,0.00041643,31]
[330037405,1718956690898,-596.32,0.00041643,31]
[330037406,1718956690937,-222.39973113,0.00041643,31]
[330037407,1718956731535,-2391.95,0.00041095,90]
[330037408,1718956731575,-2391.95,0.00041369,90]
[330037409,1718956731618,-2391.95,0.00041643,90]
[330037410,1718956731656,-150.0,0.00041775,120]
[330037411,1718956731690,-504441.27763957,0.000418,60]
[330037412,1718956731724,-150.0,0.00041864,120]
[330037413,1718956731757,-796.67237279,0.000419,120]
[330037414,1718956731789,-861.4398077,0.000419,111]
[330037415,1718956731822,-155.6524373,0.000419,120]
[330037416,1718956731891,-209.9019069,0.00041917,120]
[330037417,1718956731945,-2391.95,0.00041917,90]
[330037418,1718956731984,-262.04614782,0.00042,120]
[330037419,1718956732018,-931.80519475,0.00042,120]
[330037420,1718956732050,-3217.28630143,0.00042,120]
[330037421,1718956732097,-1000.0,0.00042,120]
[330037422,1718956732134,-3097.0,0.00042,120]
[330037423,1718956732170,-2645.42536204,0.00042,60]
[330037424,1718956732205,-151.0,0.00042055,120]
[330037425,1718956732241,-150.0,0.00042188,120]
[330037426,1718956732328,-2391.95,0.00042191,90]
[330037427,1718956732366,-151.0,0.00042247,120]
[330037428,1718956732400,-220.70438786,0.000423,90]
[330037429,1718956732438,-391.37484811,0.0004232,60]
[330037430,1718956732520,-2391.95,0.00042465,90]
[330037431,1718956732555,-151.0,0.000425,47]
[330037432,1718956732590,-150.0,0.00042522,120]
[330037433,1718956732670,-2391.95,0.00042739,90]
[330037434,1718956732706,-151.0,0.0004274,120]
[330037435,1718956732740,-150.0,0.0004275,120]
[330037436,1718956732773,-150.0,0.00042792,120]
[330037437,1718956732806,-4292.10581322,0.000428,60]
[330037438,1718956732841,-150.0,0.00042871,120]
[330037439,1718956732882,-181.91982876,0.0004288,120]
[330037440,1718956732919,-2656.0,0.00042947,58]
[330037441,1718956732956,-600.0,0.00043,120]
[330037442,1718956732988,-2500.0,0.00043,120]
[330037443,1718956733019,-1000.0,0.00043,120]
[330037444,1718956733050,-1000.0,0.00043,120]
[330037445,1718956733080,-1000.0,0.00043,120]
[330037446,1718956733118,-1000.0,0.00043,120]
[330037447,1718956733149,-1000.0,0.00043,120]
[330037448,1718956733179,-1000.0,0.00043,120]
[330037449,1718956733210,-1000.0,0.00043,120]
[330037450,1718956733241,-1000.0,0.00043,120]
[330037451,1718956733274,-1000.0,0.00043,120]
[330037452,1718956733306,-692.1,0.00043,120]
[330037453,1718956733338,-1000.0,0.00043,120]
[330037454,1718956733370,-1000.0,0.00043,120]
[330037455,1718956733400,-1000.0,0.00043,120]
[330037456,1718956733431,-1000.0,0.00043,120]
[330037457,1718956733464,-1153.42,0.00043,120]
[330037458,1718956733496,-1880.0,0.00043,60]
[330037459,1718956733528,-2000.0,0.00043,60]
[330037460,1718956733559,-2000.0,0.00043,60]
[330037461,1718956733590,-1003.91,0.00043,120]
[330037462,1718956733661,-2391.95,0.00043013,90]
[330037463,1718956733694,-200.32801308,0.0004302,120]
[330037464,1718956733726,-1849.87142647,0.00043098,120]
[330037465,1718956733756,-12088.77418163,0.00043098,90]
[330037466,1718956733786,-16032.23642442,0.00043098,90]
[330037467,1718956733818,-150.0,0.00043255,120]
[330037468,1718956733893,-2391.95,0.00043287,90]
[330037469,1718956733929,-150.0,0.00043353,120]
[330037470,1718956733962,-151.0,0.0004337,120]
[330037471,1718956733994,-150.0,0.00043389,120]
[330037472,1718956734025,-151.0,0.00043425,120]
[330037473,1718956734057,-2000.0,0.000435,60]
[330037474,1718956734089,-2000.0,0.000435,60]
[330037475,1718956734322,-2391.95,0.00043561,90]
[330037476,1718956734361,-161.68041896,0.0004358,120]
[330037477,1718956734395,-3287.35055093,0.000436,120]
[330037478,1718956734427,-1107.76324944,0.000437,120]
[330037479,1718956734460,-300.57255956,0.000438,120]
[330037480,1718956734492,-459.06819489,0.000438,120]
[330037481,1718956734524,-500.0,0.00043835,120]
[330037482,1718956734557,-612.03,0.00043835,120]
[330037483,1718956734590,-500.0,0.00043835,120]
[330037484,1718956734623,-500.0,0.00043835,120]
[330037485,1718956734655,-627.34,0.00043835,120]
[330037486,1718956734688,-587.05,0.00043835,120]
[330037487,1718956734720,-500.0,0.00043835,120]
[330037488,1718956734752,-430.26523817,0.00043835,120]
[330037489,1718956734784,-500.0,0.00043835,120]
[330037490,1718956734814,-500.0,0.00043835,120]
[330037491,1718956734846,-1146.89,0.00043835,120]
[330037492,1718956734886,-500.0,0.00043835,120]
[330037493,1718956734922,-500.0,0.00043835,120]
[330037494,1718956734958,-1059.37,0.00043835,120]
[330037495,1718956734991,-699.11,0.00043835,120]
[330037496,1718956735023,-500.0,0.00043835,120]
[330037497,1718956735054,-580.47214133,0.00043835,120]
[330037498,1718956735086,-500.0,0.00043835,120]
[330037499,1718956735117,-811.24,0.00043835,120]
[330037500,1718956735150,-946.4,0.00043835,120]
[330037501,1718956735184,-502.76,0.00043835,120]
[330037502,1718956735217,-554.1,0.00043835,120]
[330037503,1718956735250,-709.95,0.00043835,120]
[330037504,1718956735284,-1217.96,0.00043835,120]
[330037505,1718956735316,-500.0,0.00043835,120]
[330037506,1718956735349,-500.0,0.00043835,120]
[330037507,1718956735386,-500.0,0.00043835,120]
[330037508,1718956735420,-500.0,0.00043835,120]
[330037509,1718956735453,-500.0,0.00043835,120]
[330037510,1718956735486,-500.0,0.00043835,120]
[330037511,1718956735519,-619.67,0.00043835,120]
[330037512,1718956735552,-564.1,0.00043835,120]
[330037513,1718956735585,-868.95,0.00043835,120]
[330037514,1718956735619,-370.11456504,0.00043835,120]
[330037515,1718956735652,-500.0,0.00043835,120]
[330037516,1718956735686,-505.52244897,0.00043835,120]
[330037517,1718956735721,-500.0,0.00043835,120]
[330037518,1718956735757,-500.0,0.00043835,120]
[330037519,1718956735791,-500.0,0.00043835,120]
[330037520,1718956735826,-500.0,0.00043835,120]
[330037521,1718956735860,-683.29,0.00043835,120]
[330037522,1718956735898,-627.84,0.00043835,120]
[330037523,1718956735938,-500.0,0.00043835,120]
[330037524,1718956735972,-500.0,0.00043835,120]
[330037525,1718956736005,-500.0,0.00043835,120]
[330037526,1718956736038,-500.0,0.00043835,120]
[330037527,1718956736070,-500.0,0.00043835,120]
[330037528,1718956736103,-511.82,0.00043835,120]
[330037529,1718956736141,-867.89,0.00043835,120]
[330037530,1718956736175,-506.27,0.00043835,120]
[330037531,1718956736206,-500.0,0.00043835,120]
[330037532,1718956736238,-500.0,0.00043835,120]
[330037533,1718956736269,-854.92,0.00043835,120]
[330037534,1718956736302,-500.0,0.00043835,120]
[330037535,1718956736336,-500.0,0.00043835,120]
[330037536,1718956736370,-586.31,0.00043835,120]
[330037537,1718956736402,-685.69,0.00043835,120]
[330037538,1718956736438,-500.0,0.00043835,120]
[330037539,1718956736473,-748.3,0.00043835,120]
[330037540,1718956736507,-794.68,0.00043835,120]
[330037541,1718956736539,-500.0,0.00043835,120]
[330037542,1718956736571,-500.0,0.00043835,120]
[330037543,1718956736602,-500.0,0.00043835,120]
[330037544,1718956736636,-532.7,0.00043835,120]
[330037545,1718956736668,-725.95,0.00043835,120]
[330037546,1718956736700,-617.01,0.00043835,120]
[330037547,1718956736734,-500.0,0.00043835,120]
[330037548,1718956736766,-820.21,0.00043835,120]
[330037549,1718956736799,-937.52,0.00043835,120]
[330037550,1718956736831,-719.64,0.00043835,120]
[330037551,1718956736867,-506.86,0.00043835,120]
[330037552,1718956736901,-500.0,0.00043835,120]
[330037553,1718956736935,-500.0,0.00043835,120]
[330037554,1718956736967,-500.0,0.00043835,120]
[330037555,1718956736999,-839.9,0.00043835,120]
[330037556,1718956737032,-1103.6,0.00043835,120]
[330037557,1718956737063,-500.0,0.00043835,120]
[330037558,1718956737094,-500.0,0.00043835,120]
[330037559,1718956737126,-530.78,0.00043835,120]
[330037560,1718956737160,-500.0,0.00043835,120]
[330037561,1718956737192,-604.54,0.00043835,120]
[330037562,1718956737227,-697.14,0.00043835,120]
[330037563,1718956737265,-500.0,0.00043835,120]
[330037564,1718956737300,-500.0,0.00043835,120]
[330037565,1718956737333,-841.77,0.00043835,120]
[330037566,1718956737366,-500.0,0.00043835,120]
[330037567,1718956737398,-500.0,0.00043835,120]
[330037568,1718956737430,-520.78,0.00043835,120]
[330037569,1718956737812,-525.07,0.00043835,120]
[330037570,1718956737853,-500.0,0.00043835,120]
[330037571,1718956737901,-500.0,0.00043835,120]
[330037572,1718956737943,-500.0,0.00043835,120]
[330037573,1718956737981,-500.0,0.00043835,120]
[330037574,1718956738020,-500.0,0.00043835,120]
[330037575,1718956738058,-382.09550553,0.00043835,120]
[330037576,1718956738096,-577.24,0.00043835,120]
[330037577,1718956738133,-500.0,0.00043835,120]
[330037578,1718956738166,-869.8,0.00043835,120]
[330037579,1718956738199,-500.0,0.00043835,120]
[330037580,1718956738234,-1432.67,0.00043835,120]
[330037581,1718956738269,-500.0,0.00043835,120]
[330037582,1718956738301,-500.0,0.00043835,120]
[330037583,1718956738335,-500.0,0.00043835,120]
[330037584,1718956738370,-500.0,0.00043835,120]
[330037585,1718956738403,-500.0,0.00043835,120]
[330037586,1718956738437,-853.86,0.00043835,120]
[330037587,1718956738471,-560.61,0.00043835,120]
[330037588,1718956738506,-500.0,0.00043835,120]
[330037589,1718956738539,-820.38,0.00043835,120]
[330037590,1718956738573,-803.6,0.00043835,120]
[330037591,1718956738607,-652.24,0.00043835,120]
[330037592,1718956738644,-561.06,0.00043835,120]
[330037593,1718956738679,-714.43,0.00043835,120]
[330037594,1718956738714,-592.38,0.00043835,120]
[330037595,1718956738748,-500.0,0.00043835,120]
[330037596,1718956738784,-511.62,0.00043835,120]
[330037597,1718956738818,-597.98,0.00043835,120]
[330037598,1718956738853,-977.06,0.00043835,120]
[330037599,1718956738894,-745.53,0.00043835,120]
[330037600,1718956738933,-525.02,0.00043835,120]
[330037601,1718956738969,-500.0,0.00043835,120]
[330037602,1718956739003,-500.0,0.00043835,120]
[330037603,1718956739035,-500.0,0.00043835,120]
[330037604,1718956739068,-533.66,0.00043835,120]
[330037605,1718956739102,-294.11301046,0.00043835,120]
[330037606,1718956739138,-760.35,0.00043835,120]
[330037607,1718956739173,-1515.35,0.00043835,120]
[330037608,1718956739210,-614.66,0.00043835,120]
[330037609,1718956739247,-184.83832136,0.00043835,120]
[330037610,1718956739282,-500.0,0.00043835,120]
[330037611,1718956739316,-500.0,0.00043835,120]
[330037612,1718956739352,-500.0,0.00043835,120]
[330037613,1718956739392,-734.54,0.00043835,120]
[330037614,1718956739431,-500.0,0.00043835,120]
[330037615,1718956739466,-748.46,0.00043835,120]
[330037616,1718956739499,-612.85,0.00043835,120]
[330037617,1718956739533,-531.03,0.00043835,120]
[330037618,1718956739567,-500.0,0.00043835,120]
[330037619,1718956739598,-500.0,0.00043835,120]
[330037620,1718956739628,-500.0,0.00043835,120]
[330037621,1718956739660,-735.27,0.00043835,120]
[330037622,1718956739693,-500.0,0.00043835,120]
[330037623,1718956739727,-500.0,0.00043835,120]
[330037624,1718956739762,-527.74353562,0.00043835,120]
[330037625,1718956739794,-500.0,0.00043835,120]
[330037626,1718956739827,-500.0,0.00043835,120]
[330037627,1718956739859,-576.4235766,0.00043835,120]
[330037628,1718956739898,-500.0,0.00043835,120]
[330037629,1718956739935,-500.0,0.00043835,120]
[330037630,1718956739971,-500.0,0.00043835,120]
[330037631,1718956740005,-500.0,0.00043835,120]
[330037632,1718956740039,-2862.11,0.00043835,120]
[330037633,1718956740072,-642.25020604,0.00043835,120]
[330037634,1718956740106,-500.0,0.00043835,120]
[330037635,1718956740140,-500.0,0.00043835,120]
[330037636,1718956740173,-500.0,0.00043835,120]
[330037637,1718956740208,-500.0,0.00043835,120]
[330037638,1718956740245,-500.0,0.00043835,120]
[330037639,1718956740283,-557.27,0.00043835,120]
[330037640,1718956740316,-704.0,0.00043835,120]
[330037641,1718956740409,-649.31,0.00043835,120]
[330037642,1718956740444,-500.0,0.00043835,120]
[330037643,1718956740477,-521.07,0.00043835,120]
[330037644,1718956740512,-654.5,0.00043835,120]
[330037645,1718956740545,-623.67,0.00043835,120]
[330037646,1718956740577,-824.84,0.00043835,120]
[330037647,1718956740609,-1136.63,0.00043835,120]
[330037648,1718956740643,-576.54,0.00043835,120]
[330037649,1718956740678,-500.0,0.00043835,120]
[330037650,1718956740712,-500.0,0.00043835,120]
[330037651,1718956740745,-500.0,0.00043835,120]
[330037652,1718956740776,-1053.39,0.00043835,120]
[330037653,1718956740810,-694.25,0.00043835,120]
[330037654,1718956740843,-500.0,0.00043835,120]
[330037655,1718956740878,-500.0,0.00043835,120]
[330037656,1718956740911,-303.10747862,0.00043835,120]
[330037657,1718956740948,-500.0,0.00043835,120]
[330037658,1718956740982,-547.56,0.00043835,120]
[330037659,1718956741016,-500.0,0.00043835,120]
[330037660,1718956741052,-598.88,0.00043835,120]
[330037661,1718956741089,-500.0,0.00043835,120]
[330037662,1718956741124,-1091.37,0.00043835,120]
[330037663,1718956741160,-608.99,0.00043835,120]
[330037664,1718956741196,-503.01,0.00043835,120]
[330037665,1718956741231,-500.0,0.00043835,120]
[330037666,1718956741264,-500.0,0.00043835,120]
[330037667,1718956741298,-535.03,0.00043835,120]
[330037668,1718956741331,-751.31,0.00043835,120]
[330037669,1718956741370,-500.0,0.00043835,120]
[330037670,1718956741407,-523.08,0.00043835,120]
[330037671,1718956741440,-1029.71,0.00043835,120]
[330037672,1718956741477,-500.0,0.00043835,120]
[330037673,1718956741511,-521.08,0.00043835,120]
[330037674,1718956741545,-500.0,0.00043835,120]
[330037675,1718956741579,-796.24,0.00043835,120]
[330037676,1718956741613,-577.45,0.00043835,120]
[330037677,1718956741653,-500.0,0.00043835,120]
[330037678,1718956741685,-631.09,0.00043835,120]
[330037679,1718956741716,-813.4,0.00043835,120]
[330037680,1718956741748,-798.17,0.00043835,120]
[330037681,1718956741780,-947.26,0.00043835,120]
[330037682,1718956741812,-664.08,0.00043835,120]
[330037683,1718956741845,-500.0,0.00043835,120]
[330037684,1718956741883,-2083.15,0.00043835,120]
[330037685,1718956741919,-500.0,0.00043835,120]
[330037686,1718956741953,-500.0,0.00043835,120]
[330037687,1718956741986,-500.0,0.00043835,120]
[330037688,1718956742020,-568.87,0.00043835,120]
[330037689,1718956742058,-913.33,0.00043835,120]
[330037690,1718956742090,-542.93,0.00043835,120]
[330037691,1718956742123,-904.22,0.00043835,120]
[330037692,1718956742160,-1725.1,0.00043835,120]
[330037693,1718956742205,-500.0,0.00043835,120]
[330037694,1718956742238,-500.0,0.00043835,120]
[330037695,1718956742269,-1266.6,0.00043835,120]
[330037696,1718956742300,-208.81425067,0.00043835,120]
[330037697,1718956742331,-679.53,0.00043835,120]
[330037698,1718956742364,-1634.34,0.00043835,120]
[330037699,1718956742402,-500.0,0.00043835,120]
[330037700,1718956742434,-1195.59,0.00043835,120]
[330037701,1718956742467,-1276.61,0.00043835,120]
[330037702,1718956742499,-542.12,0.00043835,120]
[330037703,1718956742532,-500.0,0.00043835,120]
[330037704,1718956742565,-500.0,0.00043835,120]
[330037705,1718956742599,-500.0,0.00043835,120]
[330037706,1718956742633,-648.64,0.00043835,120]
[330037707,1718956742665,-500.0,0.00043835,120]
[330037708,1718956742697,-524.1,0.00043835,120]
[330037709,1718956742731,-583.6,0.00043835,120]
[330037710,1718956742764,-1891.87,0.00043835,120]
[330037711,1718956742795,-869.31,0.00043835,120]
[330037712,1718956742826,-2188.81,0.00043835,120]
[330037713,1718956742857,-500.0,0.00043835,120]
[330037714,1718956742895,-979.44,0.00043835,120]
[330037715,1718956742928,-500.0,0.00043835,120]
[330037716,1718956742959,-642.81,0.00043835,120]
[330037717,1718956742990,-500.0,0.00043835,120]
[330037718,1718956743021,-500.0,0.00043835,120]
[330037719,1718956743052,-1990.64,0.00043835,120]
[330037720,1718956743081,-500.0,0.00043835,120]
[330037721,1718956743110,-500.0,0.00043835,120]
[330037722,1718956743140,-500.0,0.00043835,120]
[330037723,1718956743170,-618.15,0.00043835,120]
[330037724,1718956743199,-1644.48,0.00043835,120]
[330037725,1718956743230,-500.0,0.00043835,120]
[330037726,1718956743263,-1081.88,0.00043835,120]
[330037727,1718956743294,-500.0,0.00043835,120]
[330037728,1718956743327,-500.0,0.00043835,120]
[330037729,1718956743358,-1130.5,0.00043835,120]
[330037730,1718956743392,-500.0,0.00043835,120]
[330037731,1718956743423,-2370.45,0.00043835,120]
[330037732,1718956743455,-862.92,0.00043835,120]
[330037733,1718956743486,-500.0,0.00043835,120]
[330037734,1718956743517,-912.28,0.00043835,120]
[330037735,1718956743549,-855.26,0.00043835,120]
[330037736,1718956743581,-500.0,0.00043835,120]
[330037737,1718956743612,-947.23,0.00043835,120]
[330037738,1718956743647,-774.42,0.00043835,120]
[330037739,1718956743680,-1081.69,0.00043835,120]
[330037740,1718956743712,-1073.21,0.00043835,120]
[330037741,1718956743744,-500.0,0.00043835,120]
[330037742,1718956743778,-500.0,0.00043835,120]
[330037743,1718956743808,-1329.19,0.00043835,120]
[330037744,1718956743840,-627.26,0.00043835,120]
[330037745,1718956743875,-500.0,0.00043835,120]
[330037746,1718956744027,-500.0,0.00043835,120]
[330037747,1718956744061,-500.0,0.00043835,120]
[330037748,1718956744096,-1066.12,0.00043835,120]
[330037749,1718956744130,-774.59,0.00043835,120]
[330037750,1718956744165,-500.0,0.00043835,120]
[330037751,1718956744197,-500.0,0.00043835,120]
[330037752,1718956744229,-220.49504222,0.00043835,120]
[330037753,1718956744262,-500.0,0.00043835,120]
[330037754,1718956744296,-500.0,0.00043835,120]
[330037755,1718956744329,-500.0,0.00043835,120]
[330037756,1718956744362,-885.68,0.00043835,120]
[330037757,1718956744401,-500.0,0.00043835,120]
[330037758,1718956744436,-500.0,0.00043835,120]
[330037759,1718956744474,-500.0,0.00043835,120]
[330037760,1718956744510,-838.21,0.00043835,120]
[330037761,1718956744545,-500.0,0.00043835,120]
[330037762,1718956744579,-1218.16,0.00043835,120]
[330037763,1718956744612,-500.0,0.00043835,120]
[330037764,1718956744650,-950.19,0.00043835,120]
[330037765,1718956744685,-697.69,0.00043835,120]
[330037766,1718956744723,-500.0,0.00043835,120]
[330037767,1718956744759,-500.0,0.00043835,120]
[330037768,1718956744791,-500.0,0.00043835,120]